[Event "Titled Tuesday Blitz April 26 Early 2022"]
[White "Sovetbekova, Nurai"]
[Black "Ronka, Erik"]
[WhiteFideId "13801910"]
[BlackFideId "505080"]
[WhiteElo "1538"]
[BlackElo "2264"]
[Result "0-1"]
[Round "07"]
[TimeControl "180+1"]
[Date "2022.04.26"]
[WhiteClock "0:00:02"]
[BlackClock "0:00:40"]

1. d4 {[%clk 0:03:00]}  d5 {[%clk 0:02:59]} 2. c4 {[%clk 0:03:01]}  c6 {[%clk 0:02:59]} 3. Nf3 {[%clk 0:03:00]}  Nf6 {[%clk 0:02:59]} 4. g3 {[%clk 0:03:00]}  dxc4 {[%clk 0:02:57]} 5. Bg2 {[%clk 0:02:59]}  g6 {[%clk 0:02:58]} 6. O-O {[%clk 0:02:56]}  Bg7 {[%clk 0:02:58]} 7. a4 {[%clk 0:02:57]}  O-O {[%clk 0:02:57]} 8. Na3 {[%clk 0:02:57]}  c5 {[%clk 0:02:56]} 9. Nxc4 {[%clk 0:02:56]}  Nc6 {[%clk 0:02:54]} 10. dxc5 {[%clk 0:02:51]}  Be6 {[%clk 0:02:48]} 11. Nce5 {[%clk 0:02:21]}  Nxe5 {[%clk 0:02:43]} 12. Nxe5 {[%clk 0:02:22]}  Qc7 {[%clk 0:02:41]} 13. Nd3 {[%clk 0:02:20]}  Rad8 {[%clk 0:02:39]} 14. Bf4 {[%clk 0:02:18]}  Qc8 {[%clk 0:02:37]} 15. Qc2 {[%clk 0:02:16]}  Nd5 {[%clk 0:02:32]} 16. Be5 {[%clk 0:02:09]}  Nb4 {[%clk 0:02:25]} 17. Nxb4 {[%clk 0:02:02]}  Bxe5 {[%clk 0:02:25]} 18. Nd3 {[%clk 0:01:55]}  Bd4 {[%clk 0:02:23]} 19. c6 {[%clk 0:01:50]}  Qc7 {[%clk 0:01:58]} 20. Rac1 {[%clk 0:01:39]}  bxc6 {[%clk 0:01:56]} 21. Qxc6 {[%clk 0:01:34]}  Qb8 {[%clk 0:01:56]} 22. Qc7 {[%clk 0:01:10]}  Qb3 {[%clk 0:01:48]} 23. Qxe7 {[%clk 0:01:02]}  Qxa4 {[%clk 0:01:46]} 24. Ra1 {[%clk 0:00:49]}  Qb5 {[%clk 0:01:43]} 25. Nf4 {[%clk 0:00:43]}  Rfe8 {[%clk 0:01:29]} 26. Qh4 {[%clk 0:00:24]}  Bc4 {[%clk 0:01:26]} 27. Rfc1 {[%clk 0:00:12]}  Rc8 {[%clk 0:01:17]} 28. Nd3 {[%clk 0:00:10]}  Bxd3 {[%clk 0:01:12]} 29. exd3 {[%clk 0:00:11]}  Qxb2 {[%clk 0:01:08]} 30. Qf4 {[%clk 0:00:04]}  Rxc1+ {[%clk 0:00:51]} 31. Rxc1 {[%clk 0:00:05]}  Bxf2+ {[%clk 0:00:51]} 32. Kh1 {[%clk 0:00:04]}  Bb6 {[%clk 0:00:51]} 33. Rf1 {[%clk 0:00:04]}  Qb3 {[%clk 0:00:45]} 34. Qg5 {[%clk 0:00:03]}  Qxd3 {[%clk 0:00:44]} 35. Qf6 {[%clk 0:00:03]}  Qd7 {[%clk 0:00:43]} 36. Bh3 {[%clk 0:00:02]}  Qe7 {[%clk 0:00:40]} 0-1


[Site "https://www.chess.com"]

[Event "Titled Tuesday Blitz April 26 Early 2022"]
[White "Stelmaszyk, Nico"]
[Black "Padmini, Rout"]
[WhiteFideId "16200462"]
[BlackFideId "5029295"]
[WhiteElo "2119"]
[BlackElo "2181"]
[Result "1-0"]
[Round "07"]
[TimeControl "180+1"]
[Date "2022.04.26"]
[WhiteClock "0:00:28"]
[BlackClock "0:00:35"]

1. d4 {[%clk 0:03:00]}  Nf6 {[%clk 0:02:59]} 2. c4 {[%clk 0:02:59]}  e5 {[%clk 0:02:59]} 3. dxe5 {[%clk 0:02:58]}  Ng4 {[%clk 0:02:59]} 4. Nf3 {[%clk 0:02:56]}  Nc6 {[%clk 0:02:59]} 5. Bf4 {[%clk 0:02:54]}  Bb4+ {[%clk 0:02:49]} 6. Bd2 {[%clk 0:02:51]}  Bc5 {[%clk 0:02:37]} 7. e3 {[%clk 0:02:46]}  Ngxe5 {[%clk 0:02:34]} 8. Bc3 {[%clk 0:02:37]}  d6 {[%clk 0:02:34]} 9. Nxe5 {[%clk 0:02:28]}  dxe5 {[%clk 0:02:35]} 10. Qxd8+ {[%clk 0:02:24]}  Kxd8 {[%clk 0:02:36]} 11. Nd2 {[%clk 0:02:24]}  Ke7 {[%clk 0:02:33]} 12. Ne4 {[%clk 0:02:18]}  Bb4 {[%clk 0:02:33]} 13. a3 {[%clk 0:02:15]}  Bxc3+ {[%clk 0:02:28]} 14. Nxc3 {[%clk 0:02:15]}  Be6 {[%clk 0:02:24]} 15. b4 {[%clk 0:02:09]}  Rad8 {[%clk 0:02:23]} 16. Be2 {[%clk 0:02:09]}  f5 {[%clk 0:02:16]} 17. Rd1 {[%clk 0:01:57]}  e4 {[%clk 0:02:15]} 18. Rd2 {[%clk 0:01:54]}  Ne5 {[%clk 0:02:14]} 19. c5 {[%clk 0:01:47]}  c6 {[%clk 0:02:05]} 20. Kd1 {[%clk 0:01:44]}  a5 {[%clk 0:01:23]} 21. Rxd8 {[%clk 0:01:31]}  Rxd8+ {[%clk 0:01:21]} 22. Kc2 {[%clk 0:01:32]}  axb4 {[%clk 0:01:20]} 23. axb4 {[%clk 0:01:33]}  Bc4 {[%clk 0:00:59]} 24. Bxc4 {[%clk 0:01:19]}  Nxc4 {[%clk 0:01:00]} 25. Rd1 {[%clk 0:01:18]}  Rxd1 {[%clk 0:00:53]} 26. Kxd1 {[%clk 0:01:18]}  Ne5 {[%clk 0:00:53]} 27. Ke2 {[%clk 0:01:03]}  Nd3 {[%clk 0:00:49]} 28. f3 {[%clk 0:01:04]}  exf3+ {[%clk 0:00:46]} 29. Kxd3 {[%clk 0:01:03]}  fxg2 {[%clk 0:00:46]} 30. Ne2 {[%clk 0:01:03]}  Ke6 {[%clk 0:00:44]} 31. e4 {[%clk 0:00:52]}  g5 {[%clk 0:00:27]} 32. exf5+ {[%clk 0:00:46]}  Kxf5 {[%clk 0:00:28]} 33. Ke3 {[%clk 0:00:46]}  Ke5 {[%clk 0:00:24]} 34. Kf2 {[%clk 0:00:21]}  Kd5 {[%clk 0:00:24]} 35. Ng3 {[%clk 0:00:12]}  Kc4 {[%clk 0:00:23]} 36. Ne4 {[%clk 0:00:11]}  Kxb4 {[%clk 0:00:23]} 37. Kxg2 {[%clk 0:00:11]}  h6 {[%clk 0:00:21]} 38. Kf3 {[%clk 0:00:11]}  Kc4 {[%clk 0:00:21]} 39. Kg4 {[%clk 0:00:11]}  Kd5 {[%clk 0:00:21]} 40. Nd6 {[%clk 0:00:12]}  Kxc5 {[%clk 0:00:21]} 41. Nxb7+ {[%clk 0:00:12]}  Kd5 {[%clk 0:00:21]} 42. Kh5 {[%clk 0:00:12]}  c5 {[%clk 0:00:21]} 43. Kxh6 {[%clk 0:00:11]}  c4 {[%clk 0:00:20]} 44. Na5 {[%clk 0:00:12]}  c3 {[%clk 0:00:21]} 45. Kxg5 {[%clk 0:00:12]}  c2 {[%clk 0:00:21]} 46. Nb3 {[%clk 0:00:12]}  Kc4 {[%clk 0:00:21]} 47. Nc1 {[%clk 0:00:12]}  Kc3 {[%clk 0:00:22]} 48. h4 {[%clk 0:00:13]}  Kd2 {[%clk 0:00:23]} 49. Na2 {[%clk 0:00:13]}  Kd3 {[%clk 0:00:23]} 50. h5 {[%clk 0:00:13]}  Kc4 {[%clk 0:00:24]} 51. h6 {[%clk 0:00:13]}  Kb3 {[%clk 0:00:25]} 52. Nc1+ {[%clk 0:00:14]}  Kb2 {[%clk 0:00:25]} 53. Ne2 {[%clk 0:00:14]}  Kb3 {[%clk 0:00:25]} 54. h7 {[%clk 0:00:15]}  Kc4 {[%clk 0:00:26]} 55. h8=Q {[%clk 0:00:15]}  Kd3 {[%clk 0:00:27]} 56. Qc3+ {[%clk 0:00:15]}  Kxe2 {[%clk 0:00:27]} 57. Qxc2+ {[%clk 0:00:15]}  Ke3 {[%clk 0:00:27]} 58. Qf5 {[%clk 0:00:16]}  Kd4 {[%clk 0:00:27]} 59. Qf6+ {[%clk 0:00:17]}  Kc4 {[%clk 0:00:28]} 60. Qg6 {[%clk 0:00:18]}  Kd5 {[%clk 0:00:29]} 61. Qg7 {[%clk 0:00:18]}  Ke4 {[%clk 0:00:29]} 62. Qh7+ {[%clk 0:00:19]}  Kd5 {[%clk 0:00:29]} 63. Qh6 {[%clk 0:00:20]}  Ke5 {[%clk 0:00:30]} 64. Qh5 {[%clk 0:00:21]}  Ke4 {[%clk 0:00:30]} 65. Qh4+ {[%clk 0:00:22]}  Ke5 {[%clk 0:00:31]} 66. Qf4+ {[%clk 0:00:23]}  Kd5 {[%clk 0:00:31]} 67. Kg4 {[%clk 0:00:24]}  Ke6 {[%clk 0:00:32]} 68. Qf5+ {[%clk 0:00:23]}  Kd6 {[%clk 0:00:32]} 69. Kg5 {[%clk 0:00:24]}  Ke7 {[%clk 0:00:33]} 70. Qf6+ {[%clk 0:00:24]}  Kd7 {[%clk 0:00:33]} 71. Kg6 {[%clk 0:00:25]}  Ke8 {[%clk 0:00:33]} 72. Qf7+ {[%clk 0:00:25]}  Kd8 {[%clk 0:00:34]} 73. Kf6 {[%clk 0:00:26]}  Kc8 {[%clk 0:00:34]} 74. Ke6 {[%clk 0:00:27]}  Kd8 {[%clk 0:00:35]} 75. Kd6 {[%clk 0:00:28]}  Kc8 {[%clk 0:00:35]} 76. Qc7# {[%clk 0:00:28]} 1-0


[Site "https://www.chess.com"]

[Event "Titled Tuesday Blitz April 26 Early 2022"]
[White "Stevens, Christian"]
[Black "Kotepalli, Sai Nirupama"]
[WhiteFideId "2604450"]
[BlackFideId "5039444"]
[WhiteElo "2533"]
[BlackElo "2399"]
[Result "1-0"]
[Round "07"]
[TimeControl "180+1"]
[Date "2022.04.26"]
[WhiteClock "0:01:59"]
[BlackClock "0:01:25"]

1. Nf3 {[%clk 0:03:00]}  g6 {[%clk 0:02:55]} 2. c4 {[%clk 0:03:01]}  Bg7 {[%clk 0:02:55]} 3. Nc3 {[%clk 0:03:01]}  Nf6 {[%clk 0:02:54]} 4. e4 {[%clk 0:03:00]}  d6 {[%clk 0:02:53]} 5. d4 {[%clk 0:03:01]}  O-O {[%clk 0:02:53]} 6. Be2 {[%clk 0:03:01]}  c6 {[%clk 0:02:52]} 7. O-O {[%clk 0:03:00]}  Nfd7 {[%clk 0:02:51]} 8. Be3 {[%clk 0:02:58]}  Qc7 {[%clk 0:02:49]} 9. Rc1 {[%clk 0:02:57]}  a6 {[%clk 0:02:47]} 10. Qd2 {[%clk 0:02:56]}  e5 {[%clk 0:02:44]} 11. d5 {[%clk 0:02:56]}  c5 {[%clk 0:02:39]} 12. Bh6 {[%clk 0:02:55]}  Nf6 {[%clk 0:02:36]} 13. Ne1 {[%clk 0:02:52]}  Ne8 {[%clk 0:02:21]} 14. a4 {[%clk 0:02:47]}  Nd7 {[%clk 0:02:18]} 15. Nd3 {[%clk 0:02:47]}  b6 {[%clk 0:02:11]} 16. Kh1 {[%clk 0:02:45]}  Nb8 {[%clk 0:02:05]} 17. Bxg7 {[%clk 0:02:43]}  Nxg7 {[%clk 0:01:54]} 18. f4 {[%clk 0:02:42]}  Nd7 {[%clk 0:01:52]} 19. f5 {[%clk 0:02:31]}  f6 {[%clk 0:01:48]} 20. fxg6 {[%clk 0:02:20]}  hxg6 {[%clk 0:01:48]} 21. Qh6 {[%clk 0:02:20]}  Kf7 {[%clk 0:01:40]} 22. Rf2 {[%clk 0:02:07]}  Rg8 {[%clk 0:01:37]} 23. Rcf1 {[%clk 0:02:05]}  Qd8 {[%clk 0:01:33]} 24. Bg4 {[%clk 0:02:03]}  f5 {[%clk 0:01:28]} 25. exf5 {[%clk 0:02:02]}  g5 {[%clk 0:01:25]} 26. f6 {[%clk 0:01:59]} 1-0


[Site "https://www.chess.com"]

[Event "Titled Tuesday Blitz April 26 Early 2022"]
[White "Svane, Rasmus"]
[Black "Donchenko, Alexander"]
[WhiteFideId "4657101"]
[BlackFideId "24603295"]
[WhiteElo "2645"]
[BlackElo "2539"]
[Result "0-1"]
[Round "07"]
[TimeControl "180+1"]
[Date "2022.04.26"]
[WhiteClock "0:00:03"]
[BlackClock "0:00:26"]

1. Nf3 {[%clk 0:03:00]}  Nf6 {[%clk 0:02:56]} 2. g3 {[%clk 0:03:00]}  b5 {[%clk 0:02:56]} 3. Bg2 {[%clk 0:02:58]}  Bb7 {[%clk 0:02:56]} 4. d4 {[%clk 0:02:58]}  e6 {[%clk 0:02:56]} 5. Bg5 {[%clk 0:02:59]}  Be7 {[%clk 0:02:54]} 6. Qd3 {[%clk 0:02:58]}  a6 {[%clk 0:02:51]} 7. a4 {[%clk 0:02:57]}  b4 {[%clk 0:02:43]} 8. a5 {[%clk 0:02:47]}  O-O {[%clk 0:02:39]} 9. Bxf6 {[%clk 0:02:45]}  Bxf6 {[%clk 0:02:39]} 10. Ng5 {[%clk 0:02:46]}  Bxg5 {[%clk 0:02:38]} 11. Bxb7 {[%clk 0:02:46]}  Ra7 {[%clk 0:02:39]} 12. Be4 {[%clk 0:02:44]}  d5 {[%clk 0:02:25]} 13. Bg2 {[%clk 0:02:03]}  c5 {[%clk 0:02:23]} 14. dxc5 {[%clk 0:01:49]}  Qc7 {[%clk 0:02:23]} 15. O-O {[%clk 0:01:45]}  Qxc5 {[%clk 0:02:21]} 16. e4 {[%clk 0:01:44]}  dxe4 {[%clk 0:02:14]} 17. Bxe4 {[%clk 0:01:36]}  Rd8 {[%clk 0:02:06]} 18. Qe2 {[%clk 0:01:33]}  Nc6 {[%clk 0:01:50]} 19. c3 {[%clk 0:01:13]}  b3 {[%clk 0:01:41]} 20. Bxc6 {[%clk 0:01:05]}  Qxc6 {[%clk 0:01:41]} 21. Na3 {[%clk 0:01:06]}  Rd2 {[%clk 0:01:30]} 22. Qc4 {[%clk 0:01:06]}  Qxc4 {[%clk 0:01:20]} 23. Nxc4 {[%clk 0:01:07]}  Rc2 {[%clk 0:01:20]} 24. Ra4 {[%clk 0:01:03]}  Rb7 {[%clk 0:01:05]} 25. Rb1 {[%clk 0:00:48]}  g6 {[%clk 0:00:48]} 26. Na3 {[%clk 0:00:39]}  Rd2 {[%clk 0:00:45]} 27. Nc4 {[%clk 0:00:37]}  Rc2 {[%clk 0:00:44]} 28. Na3 {[%clk 0:00:37]}  Rd7 {[%clk 0:00:39]} 29. f4 {[%clk 0:00:28]}  Be7 {[%clk 0:00:37]} 30. Nxc2 {[%clk 0:00:20]}  bxc2 {[%clk 0:00:38]} 31. Rf1 {[%clk 0:00:21]}  Bc5+ {[%clk 0:00:38]} 32. Kg2 {[%clk 0:00:17]}  Rd1 {[%clk 0:00:33]} 33. Ra1 {[%clk 0:00:12]}  Rxa1 {[%clk 0:00:33]} 34. Rxa1 {[%clk 0:00:13]}  Be3 {[%clk 0:00:33]} 35. b4 {[%clk 0:00:05]}  c1=Q {[%clk 0:00:33]} 36. Rxc1 {[%clk 0:00:06]}  Bxc1 {[%clk 0:00:34]} 37. b5 {[%clk 0:00:04]}  axb5 {[%clk 0:00:29]} 38. Kf3 {[%clk 0:00:04]}  Ba3 {[%clk 0:00:29]} 39. Ke4 {[%clk 0:00:02]}  Bc5 {[%clk 0:00:29]} 40. Kd3 {[%clk 0:00:03]}  Kf8 {[%clk 0:00:27]} 41. c4 {[%clk 0:00:02]}  b4 {[%clk 0:00:27]} 42. Kc2 {[%clk 0:00:03]}  Ke7 {[%clk 0:00:26]} 0-1


[Site "https://www.chess.com"]

[Event "Titled Tuesday Blitz April 26 Early 2022"]
[White "Tatarinov, Dmitry"]
[Black "Svane, Frederik"]
[WhiteFideId "24160067"]
[BlackFideId "12923044"]
[WhiteElo "2302"]
[BlackElo "2459"]
[Result "0-1"]
[Round "07"]
[TimeControl "180+1"]
[Date "2022.04.26"]
[WhiteClock "0:00:28"]
[BlackClock "0:00:07"]

1. d4 {[%clk 0:02:59]}  Nf6 {[%clk 0:02:18]} 2. c4 {[%clk 0:02:59]}  e6 {[%clk 0:02:18]} 3. Nf3 {[%clk 0:02:59]}  d5 {[%clk 0:02:18]} 4. g3 {[%clk 0:03:00]}  Bb4+ {[%clk 0:02:18]} 5. Bd2 {[%clk 0:02:59]}  Be7 {[%clk 0:02:18]} 6. Bg2 {[%clk 0:02:59]}  O-O {[%clk 0:02:19]} 7. O-O {[%clk 0:03:00]}  c6 {[%clk 0:02:20]} 8. Qc2 {[%clk 0:03:00]}  b6 {[%clk 0:02:20]} 9. Rc1 {[%clk 0:03:00]}  Nbd7 {[%clk 0:02:11]} 10. a4 {[%clk 0:02:59]}  a5 {[%clk 0:02:11]} 11. Bf4 {[%clk 0:02:54]}  Ba6 {[%clk 0:02:10]} 12. cxd5 {[%clk 0:02:53]}  cxd5 {[%clk 0:02:07]} 13. Nc3 {[%clk 0:02:50]}  Rc8 {[%clk 0:01:58]} 14. Qd1 {[%clk 0:02:50]}  Nb8 {[%clk 0:01:55]} 15. Nb5 {[%clk 0:02:45]}  Nc6 {[%clk 0:01:50]} 16. Bc7 {[%clk 0:02:31]}  Rxc7 {[%clk 0:01:46]} 17. Nxc7 {[%clk 0:02:31]}  Qxc7 {[%clk 0:01:47]} 18. Ne5 {[%clk 0:02:31]}  Bb7 {[%clk 0:01:47]} 19. Rc2 {[%clk 0:02:20]}  Qd6 {[%clk 0:01:25]} 20. Nf3 {[%clk 0:01:49]}  Nb4 {[%clk 0:01:23]} 21. Rcc1 {[%clk 0:01:49]}  Nd7 {[%clk 0:01:19]} 22. Ra3 {[%clk 0:01:47]}  Ba6 {[%clk 0:01:13]} 23. Bf1 {[%clk 0:01:40]}  h6 {[%clk 0:01:12]} 24. Kg2 {[%clk 0:01:39]}  Bb7 {[%clk 0:00:49]} 25. e3 {[%clk 0:01:37]}  e5 {[%clk 0:00:49]} 26. Bb5 {[%clk 0:01:35]}  exd4 {[%clk 0:00:45]} 27. Nxd4 {[%clk 0:01:35]}  Nc5 {[%clk 0:00:45]} 28. Qf3 {[%clk 0:01:30]}  Qf6 {[%clk 0:00:42]} 29. Qxf6 {[%clk 0:01:26]}  Bxf6 {[%clk 0:00:43]} 30. Rd1 {[%clk 0:01:26]}  g6 {[%clk 0:00:42]} 31. Rc3 {[%clk 0:01:25]}  Kg7 {[%clk 0:00:41]} 32. Rcc1 {[%clk 0:01:23]}  Rd8 {[%clk 0:00:39]} 33. h4 {[%clk 0:01:20]}  h5 {[%clk 0:00:39]} 34. Kg1 {[%clk 0:01:18]}  Rc8 {[%clk 0:00:35]} 35. Rc3 {[%clk 0:01:13]}  Rc7 {[%clk 0:00:34]} 36. Rcc1 {[%clk 0:01:13]}  Re7 {[%clk 0:00:35]} 37. Rc3 {[%clk 0:01:13]}  Re4 {[%clk 0:00:24]} 38. Kg2 {[%clk 0:01:08]}  Kf8 {[%clk 0:00:21]} 39. Rcc1 {[%clk 0:01:08]}  Ke7 {[%clk 0:00:21]} 40. Rc3 {[%clk 0:01:06]}  Kd6 {[%clk 0:00:20]} 41. Rcc1 {[%clk 0:01:06]}  Bxd4 {[%clk 0:00:19]} 42. Rxd4 {[%clk 0:01:02]}  Rxd4 {[%clk 0:00:18]} 43. exd4 {[%clk 0:01:03]}  Ne6 {[%clk 0:00:17]} 44. Rd1 {[%clk 0:00:56]}  Nc2 {[%clk 0:00:17]} 45. Be8 {[%clk 0:00:53]}  Ke7 {[%clk 0:00:16]} 46. Bb5 {[%clk 0:00:52]}  Ncxd4 {[%clk 0:00:16]} 47. Bd3 {[%clk 0:00:52]}  Nb3 {[%clk 0:00:16]} 48. Re1 {[%clk 0:00:50]}  Nc5 {[%clk 0:00:16]} 49. Bb5 {[%clk 0:00:50]}  Kd6 {[%clk 0:00:16]} 50. Be8 {[%clk 0:00:49]}  Ke7 {[%clk 0:00:14]} 51. Bb5 {[%clk 0:00:49]}  Bc8 {[%clk 0:00:10]} 52. Bc6 {[%clk 0:00:47]}  Nd3 {[%clk 0:00:07]} 53. Rd1 {[%clk 0:00:44]}  Nb4 {[%clk 0:00:07]} 54. Bb5 {[%clk 0:00:39]}  Nc7 {[%clk 0:00:07]} 55. Re1+ {[%clk 0:00:37]}  Kd6 {[%clk 0:00:08]} 56. Rc1 {[%clk 0:00:33]}  Be6 {[%clk 0:00:07]} 57. Kf3 {[%clk 0:00:29]}  Bf5 {[%clk 0:00:07]} 58. Kf4 {[%clk 0:00:29]}  Ne6+ {[%clk 0:00:07]} 59. Kf3 {[%clk 0:00:29]}  Nd4+ {[%clk 0:00:07]} 60. Kf4 {[%clk 0:00:28]}  Nxb5 {[%clk 0:00:07]} 61. axb5 {[%clk 0:00:28]}  Nd3+ {[%clk 0:00:07]} 0-1


[Site "https://www.chess.com"]

[Event "Titled Tuesday Blitz April 26 Early 2022"]
[White "Todorovic, Bojan"]
[Black "Hua, Lefong"]
[WhiteFideId "917087"]
[BlackFideId "2602253"]
[WhiteElo "2266"]
[BlackElo "2617"]
[Result "1-0"]
[Round "07"]
[TimeControl "180+1"]
[Date "2022.04.26"]
[WhiteClock "0:00:27"]
[BlackClock "0:00:22"]

1. d4 {[%clk 0:02:59]}  Nf6 {[%clk 0:03:00]} 2. c4 {[%clk 0:02:58]}  c5 {[%clk 0:02:59]} 3. d5 {[%clk 0:02:57]}  e6 {[%clk 0:03:00]} 4. Nc3 {[%clk 0:02:57]}  exd5 {[%clk 0:03:01]} 5. cxd5 {[%clk 0:02:57]}  d6 {[%clk 0:03:01]} 6. Nf3 {[%clk 0:02:56]}  g6 {[%clk 0:03:02]} 7. Bf4 {[%clk 0:02:54]}  a6 {[%clk 0:03:02]} 8. a4 {[%clk 0:02:46]}  Bg7 {[%clk 0:03:01]} 9. Nd2 {[%clk 0:02:46]}  O-O {[%clk 0:02:59]} 10. Nc4 {[%clk 0:02:42]}  Ne8 {[%clk 0:02:58]} 11. Qd2 {[%clk 0:02:39]}  b6 {[%clk 0:02:23]} 12. g3 {[%clk 0:02:26]}  Ra7 {[%clk 0:02:21]} 13. Bg2 {[%clk 0:02:26]}  Re7 {[%clk 0:02:20]} 14. O-O {[%clk 0:02:25]}  Qc7 {[%clk 0:02:19]} 15. Ne4 {[%clk 0:02:04]}  Rxe4 {[%clk 0:02:09]} 16. Bxe4 {[%clk 0:02:03]}  Nd7 {[%clk 0:02:05]} 17. Bg2 {[%clk 0:01:58]}  b5 {[%clk 0:01:55]} 18. axb5 {[%clk 0:01:57]}  axb5 {[%clk 0:01:56]} 19. Na5 {[%clk 0:01:51]}  Ne5 {[%clk 0:01:56]} 20. Nc6 {[%clk 0:01:48]}  Nc4 {[%clk 0:01:55]} 21. Qc2 {[%clk 0:01:45]}  Bb7 {[%clk 0:01:21]} 22. Ra7 {[%clk 0:01:33]}  Qb6 {[%clk 0:01:21]} 23. Ra2 {[%clk 0:01:21]}  Bxc6 {[%clk 0:01:05]} 24. dxc6 {[%clk 0:01:21]}  Nc7 {[%clk 0:01:02]} 25. b3 {[%clk 0:01:19]}  Ne5 {[%clk 0:01:02]} 26. Rd1 {[%clk 0:01:09]}  Rd8 {[%clk 0:00:58]} 27. Bg5 {[%clk 0:00:57]}  f6 {[%clk 0:00:58]} 28. Be3 {[%clk 0:00:56]}  Na6 {[%clk 0:00:40]} 29. c7 {[%clk 0:00:46]}  Rc8 {[%clk 0:00:34]} 30. Qd2 {[%clk 0:00:38]}  Nb4 {[%clk 0:00:31]} 31. Ra8 {[%clk 0:00:34]}  Rxa8 {[%clk 0:00:30]} 32. Bxa8 {[%clk 0:00:34]}  Qxc7 {[%clk 0:00:30]} 33. Qxd6 {[%clk 0:00:34]}  Qxd6 {[%clk 0:00:29]} 34. Rxd6 {[%clk 0:00:34]}  c4 {[%clk 0:00:29]} 35. bxc4 {[%clk 0:00:29]}  bxc4 {[%clk 0:00:28]} 36. Bc5 {[%clk 0:00:29]}  Na2 {[%clk 0:00:23]} 37. Rd8+ {[%clk 0:00:28]}  Kf7 {[%clk 0:00:22]} 38. Bd5# {[%clk 0:00:27]} 1-0


[Site "https://www.chess.com"]

[Event "Titled Tuesday Blitz April 26 Early 2022"]
[White "Toncheva, Nadya"]
[Black "Vovk, Orest"]
[WhiteFideId "2924056"]
[BlackFideId "14113490"]
[WhiteElo "1884"]
[BlackElo "2203"]
[Result "0-1"]
[Round "07"]
[TimeControl "180+1"]
[Date "2022.04.26"]
[WhiteClock "0:00:01"]
[BlackClock "0:01:26"]

1. e4 {[%clk 0:03:00]}  d6 {[%clk 0:02:53]} 2. d4 {[%clk 0:02:59]}  Nd7 {[%clk 0:02:54]} 3. Nf3 {[%clk 0:02:58]}  e5 {[%clk 0:02:54]} 4. Bc4 {[%clk 0:02:55]}  Ngf6 {[%clk 0:02:52]} 5. Nc3 {[%clk 0:02:51]}  exd4 {[%clk 0:02:50]} 6. Nxd4 {[%clk 0:02:51]}  Be7 {[%clk 0:02:51]} 7. O-O {[%clk 0:02:50]}  O-O {[%clk 0:02:51]} 8. Re1 {[%clk 0:02:49]}  Ne5 {[%clk 0:02:51]} 9. Bf1 {[%clk 0:02:46]}  Nfd7 {[%clk 0:02:51]} 10. h3 {[%clk 0:02:41]}  Nc5 {[%clk 0:02:50]} 11. f4 {[%clk 0:02:39]}  Nc6 {[%clk 0:02:50]} 12. Be3 {[%clk 0:02:35]}  Nxd4 {[%clk 0:02:49]} 13. Bxd4 {[%clk 0:02:34]}  Ne6 {[%clk 0:02:49]} 14. Be3 {[%clk 0:02:33]}  Bh4 {[%clk 0:02:49]} 15. Re2 {[%clk 0:02:30]}  Bg3 {[%clk 0:02:49]} 16. Qd2 {[%clk 0:02:23]}  Qh4 {[%clk 0:02:48]} 17. f5 {[%clk 0:02:08]}  Nf4 {[%clk 0:02:48]} 18. Bxf4 {[%clk 0:02:08]}  Bxf4 {[%clk 0:02:49]} 19. Qd3 {[%clk 0:02:06]}  Bd7 {[%clk 0:02:44]} 20. Nd5 {[%clk 0:02:04]}  Be5 {[%clk 0:02:35]} 21. Nxc7 {[%clk 0:01:51]}  Rac8 {[%clk 0:02:35]} 22. Nd5 {[%clk 0:01:50]}  a6 {[%clk 0:02:31]} 23. a4 {[%clk 0:01:43]}  Rc5 {[%clk 0:02:29]} 24. c3 {[%clk 0:01:21]}  Rxd5 {[%clk 0:02:21]} 25. exd5 {[%clk 0:01:10]}  Qf4 {[%clk 0:02:20]} 26. g3 {[%clk 0:00:55]}  Qg5 {[%clk 0:02:15]} 27. Rxe5 {[%clk 0:00:42]}  dxe5 {[%clk 0:02:09]} 28. g4 {[%clk 0:00:42]}  h5 {[%clk 0:02:05]} 29. Be2 {[%clk 0:00:40]}  b5 {[%clk 0:02:00]} 30. Qe4 {[%clk 0:00:31]}  bxa4 {[%clk 0:01:57]} 31. Bxa6 {[%clk 0:00:24]}  hxg4 {[%clk 0:01:54]} 32. hxg4 {[%clk 0:00:20]}  Rb8 {[%clk 0:01:49]} 33. Qe2 {[%clk 0:00:10]}  e4 {[%clk 0:01:44]} 34. Qxe4 {[%clk 0:00:07]}  Rxb2 {[%clk 0:01:42]} 35. Be2 {[%clk 0:00:05]}  Qd2 {[%clk 0:01:37]} 36. Kf1 {[%clk 0:00:03]}  Qxc3 {[%clk 0:01:33]} 37. Rd1 {[%clk 0:00:02]}  Qh3+ {[%clk 0:01:33]} 38. Kg1 {[%clk 0:00:02]}  Bb5 {[%clk 0:01:25]} 39. Bxb5 {[%clk 0:00:01]}  Qh2+ {[%clk 0:01:25]} 40. Kf1 {[%clk 0:00:01]}  Qf2# {[%clk 0:01:26]} 0-1


[Site "https://www.chess.com"]